[Event "7th Ali Ipek Memorial 2019"]
[Site "Ankara"]
[Date "2019.03.06"]
[Round "1.2"]
[White "Kizilkus, Akin"]
[Black "Ari, Hasancan"]
[Result "1-0"]
[ECO "D36"]
[WhiteElo "2022"]
[BlackElo "1213"]
[Annotator "NA RC"]
[PlyCount "73"]
[EventDate "2019.03.06"]
[EventType "swiss"]
[EventCountry "TUR"]
[SourceTitle "playchess.com"]
[Source "ChessBase"]
[SourceQuality "1"]
[TimeControl "5400+30"]

1. d4 {[%emt 0:00:30]} d5 {[%emt 0:03:30]} 2. c4 {[%emt 0:00:00]} e6 {[%emt 0:02:30]} 3. Nc3 {[%emt 0:00:00]} Nf6 {[%emt 0:02:30]} 4. cxd5 {[%emt 0:00:30]} exd5 {[%emt 0:00:00]} 5. Bg5 {[%emt 0:00:30]} Nbd7 {[%emt 0:00:00]} 6. e3 {[%emt 0:00:00]} Be7 {[%emt 0:00:30]} 7. Bd3 {[%emt 0:00:00]} O-O {[%emt 0:00:30]} 8. Qc2 {[%emt 0:00:00]} h6 {[%emt 0:01:30]} 9. Bh4 {[%emt 0:00:00]} Re8 {[%emt 0:01:30]} 10. Nf3 {[%emt 0:00:30]} c6 {[%emt 0:01:30] LiveBook: 188 Games} 11. O-O {[%emt 0:03:30]} Ne4 {[%emt 0:03:30]} 12. Bxe7 {[%emt 0:00:30]} Qxe7 {[%emt 0:00:30]} 13. Rab1 {[%emt 0:00:00]} a5 {[%emt 0:00:30]} 14. a3 {[%emt 0:01:00] D36: Queen's Gambit Declined: Exchange Variation: Main line (5 Bg5 c6 6 Qc2)} (14. Rfe1 Nf8 15. Bxe4 dxe4 16. Nd2 f5 17. d5 Ra6 18. Rbd1 Ng6 19. d6 Qf7 20. f4 exf3 21. Nxf3 Ra8 {1-0 (63) Manolache,M (2495)-Kaasen,T (2347) Sitges 2017}) 14... f5 {[%emt 0:02:30]} 15. b4 {[%emt 0:02:30]} Qf7 $146 {[%emt 0:01:30]} ({Predecessor:} 15... g5 16. Na4 axb4 17. axb4 g4 18. Ne1 Ndf6 19. Nc5 h5 20. b5 h4 21. Bxe4 fxe4 22. bxc6 bxc6 {0-1 (30) Davydov,A (1713)-Gitelson,A (1854) Saratov 2014}) 16. b5 {[%emt 0:03:30]} Nd6 {[%emt 0:03:30]} 17. bxc6 {[%emt 0:00:30]} bxc6 {[%emt 0:00:00]} 18. Na4 {[%emt 0:02:30]} Bb7 {[%emt 0:04:00] [#]} (18... Ba6 $16) 19. Bxf5 $1 {[%emt 0:02:30]} Qxf5 {[%emt 0:06:30]} 20. Qxf5 {[%emt 0:00:30]} Nxf5 {[%emt 0:00:30]} 21. Rxb7 {[%emt 0:00:30]} Re7 {[%emt 0:01:30]} 22. Rc7 {[%emt 0:02:30]} Ne5 {[%emt 0:01:30]} 23. Rxe7 {[%emt 0:01:30]} Nxf3+ {[%emt 0:00:30]} 24. gxf3 {[%emt 0:00:30]} Nxe7 {[%emt 0:00:30]} 25. Rb1 {[%emt 0:00:00]} g5 {[%emt 0:00:30]} 26. Rb7 {[%emt 0:02:00]} Kf7 {[%emt 0:00:30]} 27. Nb6 {[%emt 0:00:30]} Rd8 {[%emt 0:00:30]} 28. Nd7 {[%emt 0:01:30]} Ke6 {[%emt 0:01:30]} 29. Ne5 {[%emt 0:00:30]} Rd6 {[%emt 0:00:30]} 30. Ra7 {[%emt 0:00:30]} Nf5 {[%emt 0:03:30]} 31. Rxa5 {[%emt 0:00:30]} h5 {[%emt 0:01:30]} 32. Ra8 {[%emt 0:00:30]} Ke7 {[%emt 0:00:30]} 33. Rc8 {[%emt 0:00:30]} Nh4 {[%emt 0:00:30]} 34. a4 {[%emt 0:00:30]} Re6 {[%emt 0:00:00]} 35. a5 {[%emt 0:00:30]} Rf6 {[%emt 0:00:00]} 36. a6 {[%emt 0:01:30]} c5 {[%emt 0:00:30]} 37. a7 $18 {[%emt 0:00:00]} 1-0

[Event "7th Ali Ipek Memorial 2019"]
[Site "Ankara"]
[Date "2019.03.06"]
[Round "1.5"]
[White "Avci, Engin"]
[Black "Karadag, Eflatun Cem"]
[Result "0-1"]
[ECO "C50"]
[WhiteElo "1283"]
[BlackElo "1879"]
[Annotator "NA RC"]
[PlyCount "58"]
[EventDate "2019.03.06"]
[EventType "swiss"]
[EventCountry "TUR"]
[SourceTitle "playchess.com"]
[Source "ChessBase"]
[SourceQuality "1"]
[TimeControl "5400+30"]

1. e4 {[%emt 0:00:30]} e5 {[%emt 0:00:30]} 2. Nf3 {[%emt 0:00:30]} Nc6 {[%emt 0:00:00]} 3. Bc4 {[%emt 0:00:00]} Bc5 {[%emt 0:00:00]} 4. Nc3 {[%emt 0:00:00]} Nf6 {[%emt 0:00:30]} 5. O-O {[%emt 0:01:30]} O-O {[%emt 0:03:30]} 6. d3 {[%emt 0:02:30]} h6 {[%emt 0:00:30]} 7. Be3 {[%emt 0:00:30]} d6 {[%emt 0:04:30]} 8. h3 {[%emt 0:13:30]} a6 {[%emt 0:04:30]} 9. a4 {[%emt 0:08:30]} Rb8 {[%emt 0:08:30]} 10. d4 {[%emt 0:20:30]} exd4 {[%emt 0:09:30]} 11. Nxd4 {[%emt 0:01:30]} Re8 {[%emt 0:09:30]} (11... Ne5 {[%emt 0:08:30]}) 12. Be2 {[%emt 0:00:30]} Ne5 {[%emt 0:00:30]} 13. Rb1 {[%emt 0:17:30]} d5 {[%emt 0:10:30]} 14. exd5 {[%emt 0:06:30]} Nxd5 $11 {[%emt 0:04:30]} 15. Nxd5 {[%emt 0:07:51]} Qxd5 {[%emt 0:01:30]} 16. Nf3 {[%emt 0:05:15]} Qxd1 {[%emt 0:02:30]} 17. Rbxd1 {[%emt 0:01:26]} Bxe3 {[%emt 0:00:30]} 18. Nxe5 {[%emt 0:02:29]} Bb6 {[%emt 0:05:30]} 19. Bc4 {[%emt 0:02:25]} Rxe5 {[%emt 0:03:30]} 20. Rd8+ {[%emt 0:01:02]} Kh7 {[%emt 0:00:30]} 21. Bxf7 {[%emt 0:00:00]} g5 {[%emt 0:00:30]} 22. Rfd1 {[%emt 0:00:42]} c6 {[%emt 0:08:30]} 23. Rg8 {[%emt 0:01:11]} Bg4 {[%emt 0:01:40]} 24. Rxb8 {[%emt 0:01:43]} Bxd1 {[%emt 0:00:40]} 25. Rxb7 {[%emt 0:00:05]} Re1+ {[%emt 0:00:25]} 26. Kh2 {[%emt 0:00:35]} Bxf2 {[%emt 0:00:23]} 27. Bd5+ {[%emt 0:00:56]} Kg6 {[%emt 0:00:30]} 28. Bxc6 {[%emt 0:00:00]} h5 {[%emt 0:00:28]} 29. c4 {[%emt 0:00:08]} h4 {[%emt 0:00:24]} 0-1

[Event "7th Ali Ipek Memorial 2019"]
[Site "Ankara"]
[Date "2019.03.06"]
[Round "1.6"]
[White "Severcan, Sedat Sabri"]
[Black "Bilen, Tuna"]
[Result "1-0"]
[ECO "A54"]
[WhiteElo "1927"]
[BlackElo "1193"]
[Annotator "NA RC"]
[PlyCount "96"]
[EventDate "2019.03.06"]
[EventType "swiss"]
[EventCountry "TUR"]
[SourceTitle "playchess.com"]
[Source "ChessBase"]
[SourceQuality "1"]
[TimeControl "5400+30"]

1. Nf3 {[%emt 0:00:30]} Nc6 {[%emt 0:00:30]} 2. c4 {[%emt 0:00:30]} e5 {[%emt 0:04:30]} 3. Nc3 {[%emt 0:00:30]} Nf6 {[%emt 0:00:30]} 4. g3 {[%emt 0:00:00]} d6 {[%emt 0:03:30]} 5. Bg2 {[%emt 0:00:00]} Be7 {[%emt 0:00:30]} 6. O-O {[%emt 0:00:30]} O-O {[%emt 0:01:30]} 7. d4 {[%emt 0:01:30]} Bg4 {[%emt 0:08:30]} 8. d5 {[%emt 0:02:30] A54: Old Indian Defence with Nf3, but without e4} Bxf3 {[%emt 0:00:30]} 9. Bxf3 {[%emt 0:00:30]} Na5 {[%emt 0:14:30]} 10. Qa4 $146 {[%emt 0:03:30]} ({Predecessor:} 10. Qd3 b6 11. b4 Nb7 12. a3 Qd7 13. Bg2 a5 14. Bb2 Rfe8 15. e4 Nh5 {1-0 (42) Shomoev,A (2582)-Vostrikov,A (2206) Izhevsk 2012}) 10... b6 {[%emt 0:08:30]} 11. e4 {[%emt 0:07:30]} Qd7 {[%emt 0:03:30]} 12. Qxd7 {[%emt 0:06:30]} Nxd7 {[%emt 0:00:00]} 13. b3 {[%emt 0:00:00]} a6 {[%emt 0:02:00]} 14. Be3 {[%emt 0:07:00]} Nb7 {[%emt 0:00:30]} 15. b4 {[%emt 0:02:30]} a5 {[%emt 0:04:30]} 16. a3 {[%emt 0:00:30]} Rac8 {[%emt 0:09:30]} 17. Bg4 {[%emt 0:01:30]} Rfd8 {[%emt 0:00:30]} 18. Nb5 {[%emt 0:00:30]} Ra8 {[%emt 0:10:30]} 19. f3 {[%emt 0:05:30]} Nf6 {[%emt 0:04:30]} 20. Bh3 {[%emt 0:00:30]} (20. Nxc7 $18 Nxg4 21. fxg4) 20... Ne8 {[%emt 0:00:30]} 21. Rfc1 {[%emt 0:04:30]} Ra6 {[%emt 0:01:30]} 22. Kf2 {[%emt 0:01:30]} Kf8 {[%emt 0:02:32]} 23. Ke1 {[%emt 0:03:30]} Bf6 {[%emt 0:00:30]} 24. Kd2 {[%emt 0:01:30]} Ke7 {[%emt 0:00:10]} 25. Kc2 {[%emt 0:17:30]} Rda8 {[%emt 0:03:11]} 26. Kb2 {[%emt 0:01:30]} Kd8 {[%emt 0:00:26]} 27. Bd2 {[%emt 0:03:30]} h6 {[%emt 0:01:52]} 28. Bg4 {[%emt 0:03:30]} Be7 {[%emt 0:04:16]} 29. Bc3 {[%emt 0:01:30]} Bf6 {[%emt 0:00:45]} 30. Bh3 {[%emt 0:00:30]} g6 {[%emt 0:01:17]} 31. Bg2 {[%emt 0:01:30]} g5 {[%emt 0:00:55]} 32. Kb3 {[%emt 0:02:30]} Bg7 {[%emt 0:00:48]} 33. Bf1 {[%emt 0:00:30]} h5 {[%emt 0:01:19]} 34. Bd3 {[%emt 0:01:56]} f6 {[%emt 0:00:30]} 35. h3 {[%emt 0:00:30]} Bh6 {[%emt 0:00:41]} 36. Rg1 {[%emt 0:01:11]} Ng7 {[%emt 0:01:04]} (36... Ke7 $16 37. Rae1 axb4 38. axb4 (38. Bxb4 Nc5+ 39. Kc3 Kf7 $14) 38... Nd8) 37. f4 {[%emt 0:03:33]} Kd7 {[%emt 0:01:56]} (37... axb4 $142 38. axb4 Rxa1 39. Bxa1 Kd7) 38. fxe5 {[%emt 0:03:57]} (38. Raf1 $142 axb4 39. axb4) 38... dxe5 {[%emt 0:00:46]} 39. Rgf1 {[%emt 0:00:30]} Ne8 {[%emt 0:00:00]} 40. Be2 {[%emt 0:00:32]} h4 {[%emt 0:00:33]} 41. Bg4+ {[%emt 0:02:14]} Kd8 {[%emt 0:00:30]} 42. gxh4 {[%emt 0:01:20]} gxh4 {[%emt 0:00:10]} 43. Bh5 {[%emt 0:01:22]} Ned6 {[%emt 0:01:40]} 44. Rxf6 $18 {[%emt 0:01:24]} Bf4 {[%emt 0:00:20]} 45. Bf3 {[%emt 0:00:21]} Kd7 {[%emt 0:00:54]} 46. Rg6 {[%emt 0:00:23]} Rf8 {[%emt 0:00:30]} 47. Rg7+ {[%emt 0:00:38]} Rf7 {[%emt 0:00:08]} 48. Bg4+ {[%emt 0:00:40]} Ke7 {[%emt 0:00:58]} 1-0

[Event "7th Ali Ipek Memorial 2019"]
[Site "Ankara"]
[Date "2019.03.06"]
[Round "1.8"]
[White "Taspinar, Yanki"]
[Black "Muti, Erol"]
[Result "1-0"]
[ECO "C08"]
[WhiteElo "1792"]
[BlackElo "1286"]
[Annotator "NA RC"]
[PlyCount "156"]
[EventDate "2019.03.06"]
[EventType "swiss"]
[EventCountry "TUR"]
[SourceTitle "playchess.com"]
[Source "ChessBase"]
[SourceQuality "1"]
[TimeControl "5400+30"]

1. e4 {[%emt 0:00:30]} e6 {[%emt 0:02:30]} 2. d4 {[%emt 0:00:30]} d5 {[%emt 0:00:30]} 3. Nd2 {[%emt 0:00:30]} c5 {[%emt 0:00:00]} 4. exd5 {[%emt 0:00:00]} exd5 {[%emt 0:01:00]} 5. Ngf3 {[%emt 0:00:00]} Nf6 {[%emt 0:00:30]} 6. Be2 {[%emt 0:01:30]} Be7 {[%emt 0:00:30]} 7. O-O {[%emt 0:00:30]} O-O {[%emt 0:00:30]} 8. dxc5 {[%emt 0:00:30]} Bxc5 {[%emt 0:00:30]} 9. Nb3 {[%emt 0:00:30]} Bd6 {[%emt 0:03:30]} 10. Bg5 {[%emt 0:00:00]} Bg4 {[%emt 0:01:30]} 11. Nfd4 {[%emt 0:34:00]} Bxe2 {[%emt 0:01:30]} 12. Qxe2 {[%emt 0:01:30]} Nbd7 {[%emt 0:00:30]} 13. Nf5 {[%emt 0:03:30]} Re8 {[%emt 0:01:30]} 14. Qf3 {[%emt 0:00:30]} Be5 {[%emt 0:01:30]} 15. c3 {[%emt 0:04:30]} Qc7 {[%emt 0:00:30]} 16. g3 {[%emt 0:01:30]} Ne4 {[%emt 0:02:30]} 17. Be3 {[%emt 0:01:30]} b6 {[%emt 0:00:30]} 18. Rad1 {[%emt 0:00:00]} Ndf6 {[%emt 0:00:30]} 19. Bd4 {[%emt 0:03:00]} Rad8 {[%emt 0:00:30]} 20. Rfe1 {[%emt 0:02:30]} Ng5 {[%emt 0:07:30]} 21. Qg2 {[%emt 0:01:30]} Bxd4 {[%emt 0:01:30]} 22. Nbxd4 {[%emt 0:00:30]} Nge4 {[%emt 0:02:30]} 23. Re2 {[%emt 0:10:30]} Nd6 {[%emt 0:02:30]} 24. Rxe8+ {[%emt 0:03:30]} Rxe8 {[%emt 0:00:00]} 25. Ne3 {[%emt 0:00:00]} Nde4 {[%emt 0:01:00]} 26. Ndc2 {[%emt 0:04:00]} Qc5 {[%emt 0:03:30]} 27. Rd4 {[%emt 0:00:30]} a5 {[%emt 0:00:30]} 28. Qf3 {[%emt 0:02:30]} Qb5 {[%emt 0:03:30]} 29. Nd1 {[%emt 0:06:54]} h6 {[%emt 0:01:30]} 30. Qd3 {[%emt 0:01:49]} Qc6 {[%emt 0:01:30]} 31. Nde3 {[%emt 0:01:08]} Ng5 {[%emt 0:02:30]} 32. Nxd5 {[%emt 0:04:46]} Nxd5 {[%emt 0:02:30]} 33. Rxd5 {[%emt 0:00:09]} Qe6 {[%emt 0:01:30]} 34. h4 {[%emt 0:03:31]} Ne4 {[%emt 0:00:30]} 35. Rd8 {[%emt 0:02:53]} Nc5 {[%emt 0:02:30]} 36. Rxe8+ {[%emt 0:00:30]} Qxe8 {[%emt 0:00:00]} 37. Qc4 {[%emt 0:03:28]} Qd7 {[%emt 0:02:00]} 38. Nd4 {[%emt 0:01:19]} Qa4 {[%emt 0:01:30]} 39. b4 {[%emt 0:02:00]} axb4 {[%emt 0:00:30]} 40. cxb4 {[%emt 0:00:00]} Qd1+ {[%emt 0:00:00]} 41. Kg2 {[%emt 0:00:25]} Nd3 {[%emt 0:01:00]} 42. Qc8+ {[%emt 0:02:00]} Kh7 {[%emt 0:00:30]} 43. Qf5+ {[%emt 0:00:00]} Kg8 {[%emt 0:00:30]} 44. Nc6 {[%emt 0:00:33]} Ne1+ {[%emt 0:00:30]} 45. Kh3 {[%emt 0:00:30]} g6 {[%emt 0:01:30]} 46. Ne7+ {[%emt 0:00:30]} Kg7 {[%emt 0:01:30]} 47. Qe5+ {[%emt 0:00:15]} Kf8 {[%emt 0:02:30]} 48. Nd5 {[%emt 0:00:20]} Kg8 {[%emt 0:01:30]} 49. Nf6+ {[%emt 0:00:38]} Kf8 {[%emt 0:01:30]} 50. Nh7+ {[%emt 0:00:58]} Kg8 {[%emt 0:00:30]} 51. Nf6+ {[%emt 0:00:30]} Kf8 {[%emt 0:00:00]} 52. Qf4 {[%emt 0:00:32]} Kg7 {[%emt 0:00:00]} 53. Ng4 {[%emt 0:00:13]} Qa1 {[%emt 0:11:30]} 54. Qxh6+ {[%emt 0:00:30]} Kg8 {[%emt 0:00:30]} 55. h5 {[%emt 0:00:38]} Nf3 {[%emt 0:00:30]} 56. Kg2 {[%emt 0:00:04]} Ne1+ {[%emt 0:00:30]} 57. Kf1 {[%emt 0:00:42]} Nd3+ {[%emt 0:01:30]} 58. Ke2 {[%emt 0:00:14]} Nc1+ {[%emt 0:00:30]} 59. Kf3 {[%emt 0:00:30]} Qc3+ {[%emt 0:00:30]} 60. Kg2 {[%emt 0:00:16]} Qc6+ {[%emt 0:00:00]} 61. Kh2 {[%emt 0:00:46]} Nd3 {[%emt 0:02:00]} 62. hxg6 {[%emt 0:00:33]} fxg6 {[%emt 0:01:30]} 63. Qd2 {[%emt 0:01:21]} Qf3 {[%emt 0:00:30]} 64. Kh3 {[%emt 0:00:03]} Qh1+ {[%emt 0:01:30]} 65. Nh2 {[%emt 0:00:02]} Qd5 {[%emt 0:00:30]} 66. Qe3 {[%emt 0:00:44]} Qh5+ {[%emt 0:02:30]} 67. Kg2 {[%emt 0:00:04]} Qd5+ {[%emt 0:00:30]} 68. Nf3 {[%emt 0:00:14]} Kf7 {[%emt 0:00:30]} 69. a3 {[%emt 0:00:38]} Kf6 {[%emt 0:02:30]} 70. Qxb6+ {[%emt 0:00:30]} Kf5 {[%emt 0:00:30]} 71. g4+ {[%emt 0:01:05]} Kxg4 {[%emt 0:02:30]} 72. Qxg6+ {[%emt 0:00:02]} Kf4 {[%emt 0:00:30]} 73. Qg3+ {[%emt 0:01:12]} Ke4 {[%emt 0:00:30]} 74. Qg4+ {[%emt 0:00:38]} Nf4+ {[%emt 0:00:30]} 75. Kg3 {[%emt 0:00:00]} Qf5 {[%emt 0:00:30]} 76. Nd2+ {[%emt 0:00:33]} Ke5 {[%emt 0:00:30]} 77. Nc4+ {[%emt 0:00:15]} Ke4 {[%emt 0:00:30]} 78. Nd6+ {[%emt 0:00:30]} Kd5 {[%emt 0:00:30]} 1-0

[Event "7th Ali Ipek Memorial 2019"]
[Site "Ankara"]
[Date "2019.03.06"]
[Round "1.9"]
[White "Cosgun, Deniz"]
[Black "Turkmen, Ataberk"]
[Result "0-1"]
[ECO "B08"]
[WhiteElo "1323"]
[BlackElo "1868"]
[Annotator "NA RC"]
[PlyCount "74"]
[EventDate "2019.03.06"]
[EventType "swiss"]
[EventCountry "TUR"]
[SourceTitle "playchess.com"]
[Source "ChessBase"]
[SourceQuality "1"]
[TimeControl "5400+30"]

1. e4 {[%emt 0:00:30]} d6 {[%emt 0:00:30]} 2. d4 {[%emt 0:00:30]} Nf6 {[%emt 0:00:00]} 3. Nc3 {[%emt 0:00:30]} g6 {[%emt 0:00:00]} 4. Nf3 {[%emt 0:03:30]} Bg7 {[%emt 0:02:30]} 5. Be2 {[%emt 0:01:30]} O-O {[%emt 0:00:30]} 6. O-O {[%emt 0:00:30]} Nc6 {[%emt 0:00:30]} 7. Bg5 {[%emt 0:00:30]} h6 {[%emt 0:01:30] B08: Pirc Defence: Classical System} 8. Be3 {[%emt 0:03:30]} (8. Bh4 a6 9. d5 Na7 10. Qd2 Bg4 11. Nd4 Bxe2 12. Ndxe2 Nb5 13. f3 c6 14. Rad1 Rc8 15. dxc6 bxc6 {0-1 (41) Sarana,A (2543)-Mamedyarov,S (2791) Sochi 2017}) 8... e5 {[%emt 0:02:30]} 9. d5 {[%emt 0:01:30]} Ne7 {[%emt 0:00:00]} 10. Qd2 $146 {[%emt 0:01:30]} ({Predecessor:} 10. h3 Ne8 11. Qd2 Kh7 12. Ne1 f5 13. f3 Bd7 14. Rd1 Nf6 15. a4 {½-½ (25) Khan,V (2131)-Torell,H (2157) LSS email 2013}) 10... Kh7 {[%emt 0:03:00]} 11. Ne1 {[%emt 0:05:30]} Nd7 {[%emt 0:07:30]} 12. f4 {[%emt 0:03:30]} f5 {[%emt 0:03:30]} 13. fxe5 {[%emt 0:04:30]} Nxe5 {[%emt 0:02:30]} 14. Nf3 {[%emt 0:04:30]} g5 {[%emt 0:16:30]} 15. Nxe5 {[%emt 0:08:30]} Bxe5 {[%emt 0:01:30]} 16. exf5 {[%emt 0:05:30]} Bxf5 {[%emt 0:01:30] [#]} (16... Nxf5 $11 {keeps the balance.} 17. Bf2 Kg7) 17. Bd3 {[%emt 0:03:30]} (17. h4 $1 $16 {[%mdl 512]}) 17... Qd7 $2 {[%emt 0:02:30]} (17... Kh8 $11) 18. Bxf5+ {[%emt 0:06:30]} Nxf5 {[%emt 0:02:30]} 19. Qd3 {[%emt 0:01:30]} Kg7 {[%emt 0:00:30]} 20. Bf2 {[%emt 0:02:30]} a6 {[%emt 0:01:30]} 21. a4 {[%emt 0:04:30]} Rf7 {[%emt 0:01:30]} 22. Rad1 {[%emt 0:02:30]} Raf8 {[%emt 0:01:30]} 23. b3 {[%emt 0:00:30]} g4 {[%emt 0:05:30]} 24. Ne2 {[%emt 0:01:30]} Qe7 $11 {[%emt 0:04:30]} 25. Ng3 {[%emt 0:07:30]} Qg5 {[%emt 0:03:30]} 26. Nxf5+ {[%emt 0:00:30]} Rxf5 {[%emt 0:01:30]} 27. Bg3 {[%emt 0:04:30]} Rxf1+ {[%emt 0:02:30]} 28. Rxf1 {[%emt 0:00:30]} Bxg3 {[%emt 0:00:30]} 29. Rxf8 {[%emt 0:02:30]} Bxh2+ {[%emt 0:00:30]} 30. Kxh2 {[%emt 0:00:45]} Kxf8 {[%emt 0:00:30]} 31. Qc3 {[%emt 0:01:03]} Qe5+ {[%emt 0:03:30]} 32. Qg3 {[%emt 0:02:19]} Ke7 {[%emt 0:00:30]} 33. c4 {[%emt 0:04:10]} Kf6 {[%emt 0:00:30]} 34. b4 {[%emt 0:01:16]} b6 {[%emt 0:00:30]} 35. c5 {[%emt 0:02:54]} dxc5 {[%emt 0:00:30]} 36. bxc5 {[%emt 0:01:24]} bxc5 {[%emt 0:00:30]} 37. Qxe5+ {[%emt 0:00:30]} Kxe5 {[%emt 0:00:00]} 0-1

[Event "7th Ali Ipek Memorial 2019"]
[Site "Ankara"]
[Date "2019.03.06"]
[Round "1.11"]
[White "Lacin, Tuna"]
[Black "Nazli, Sertan"]
[Result "0-1"]
[ECO "B34"]
[WhiteElo "1264"]
[BlackElo "1811"]
[Annotator "NA RC"]
[PlyCount "52"]
[EventDate "2019.03.06"]
[EventType "swiss"]
[EventCountry "TUR"]
[SourceTitle "playchess.com"]
[Source "ChessBase"]
[SourceQuality "1"]
[TimeControl "5400+30"]

1. e4 {[%emt 0:00:30]} g6 {[%emt 0:00:30]} 2. d4 {[%emt 0:00:30]} Bg7 {[%emt 0:00:30]} 3. Nf3 {[%emt 0:00:00]} c5 {[%emt 0:00:00]} 4. Nc3 {[%emt 0:00:00]} cxd4 {[%emt 0:00:00]} 5. Nxd4 {[%emt 0:00:30]} Nc6 {[%emt 0:00:30]} 6. Be3 {[%emt 0:01:30]} Nf6 {[%emt 0:04:30]} 7. f3 {[%emt 0:03:30]} O-O {[%emt 0:00:30]} 8. h4 {[%emt 0:02:30] B34: Sicilian: Accelerated Dragon with 5 Nc3: sidelines} (8. Nxc6 bxc6 9. Bc4 d5 10. exd5 Nxd5 11. Nxd5 cxd5 12. Bxd5 Rb8 13. Bb3 Qc7 14. c3 a5 15. O-O {½-½ (15) Motylev,A (2652)-Khismatullin,D (2609) Cheboksary 2016}) 8... d5 {[%emt 0:01:30]} 9. Nde2 $146 {[%emt 0:02:30]} (9. Nxd5 $15 Nxd5 10. exd5 Qxd5 11. Nxc6) ({Predecessor:} 9. Nxc6 bxc6 10. e5 Nh5 11. f4 Ng3 12. Rg1 Rb8 13. b3 Qa5 14. Qd2 Rd8 15. Rd1 Bg4 {½-½ (35) Boucaud,A (1700)-Entem,A (2144) Hennebont 2006}) 9... Qa5 {[%emt 0:04:30]} 10. Bd2 {[%emt 0:09:30]} Qb6 {[%emt 0:06:30]} 11. exd5 {[%emt 0:04:30]} Ne5 {[%emt 0:03:30]} 12. Qc1 {[%emt 0:02:30]} Rd8 {[%emt 0:01:30]} (12... Nc4 $17 13. Bg5 Qb4) 13. Be3 {[%emt 0:01:30]} Qa5 {[%emt 0:00:30]} 14. Bd2 {[%emt 0:01:30]} Nc4 {[%emt 0:00:30]} 15. Nf4 {[%emt 0:00:30]} Nxd2 {[%emt 0:00:30]} 16. Qxd2 {[%emt 0:02:30]} Bh6 {[%emt 0:09:30]} 17. Bc4 {[%emt 0:02:30]} e5 {[%emt 0:02:30]} 18. g3 {[%emt 0:06:30]} exf4 {[%emt 0:02:30]} 19. Qd4 $2 {[%emt 0:02:30]} (19. O-O-O) 19... Re8+ {[%emt 0:01:30]} 20. Kf1 {[%emt 0:00:30]} fxg3 {[%emt 0:01:30]} 21. Qxf6 {[%emt 0:02:30]} Qc5 {[%emt 0:01:30]} 22. Nd1 {[%emt 0:02:30]} Qxc4+ {[%emt 0:00:30]} 23. Kg2 {[%emt 0:00:30]} Re2+ {[%emt 0:01:30]} 24. Kxg3 {[%emt 0:00:30]} Bf5 {[%emt 0:00:30]} 25. Nf2 {[%emt 0:00:30]} Qf4+ {[%emt 0:00:30]} 26. Kg2 {[%emt 0:00:30]} Bh3+ {[%emt 0:00:30]} 0-1

[Event "7th Ali Ipek Memorial 2019"]
[Site "Ankara"]
[Date "2019.03.06"]
[Round "1.12"]
[White "Alkan, Omer Tarik"]
[Black "Turkucu, Eyup"]
[Result "1-0"]
[ECO "B09"]
[WhiteElo "1720"]
[BlackElo "1250"]
[Annotator "NA RC"]
[PlyCount "73"]
[EventDate "2019.03.06"]
[EventType "swiss"]
[EventCountry "TUR"]
[SourceTitle "playchess.com"]
[Source "ChessBase"]
[SourceQuality "1"]
[TimeControl "5400+30"]

1. e4 {[%emt 0:00:30]} d6 {[%emt 0:00:30]} 2. d4 {[%emt 0:00:30]} Nf6 {[%emt 0:00:30]} 3. Nc3 {[%emt 0:00:00]} g6 {[%emt 0:00:00]} 4. f4 {[%emt 0:00:00]} Bg7 {[%emt 0:00:00]} 5. Nf3 {[%emt 0:00:00]} Bg4 {[%emt 0:00:30]} 6. e5 {[%emt 0:01:00]} dxe5 {[%emt 0:00:30]} 7. fxe5 {[%emt 0:00:00]} Ng8 {[%emt 0:00:30]} 8. Bc4 {[%emt 0:00:00]} h6 {[%emt 0:02:30]} 9. h3 {[%emt 0:02:30]} Bd7 {[%emt 0:01:30]} 10. O-O {[%emt 0:00:00]} c6 {[%emt 0:00:30]} 11. e6 {[%emt 0:00:00]} fxe6 {[%emt 0:00:30]} 12. Qd3 {[%emt 0:00:30]} Bf6 {[%emt 0:04:30]} 13. Qxg6+ {[%emt 0:01:30]} Kf8 {[%emt 0:00:30]} 14. Ne5 {[%emt 0:01:30]} Be8 {[%emt 0:01:30]} 15. Qg4 {[%emt 0:00:30]} Qd6 {[%emt 0:03:30]} 16. Kh1 {[%emt 0:02:30]} Bf7 {[%emt 0:01:30]} 17. Bf4 {[%emt 0:00:30]} Qxd4 {[%emt 0:04:30]} 18. Bxh6+ {[%emt 0:00:30]} Nxh6 {[%emt 0:01:30]} 19. Qxd4 {[%emt 0:00:30]} Nf5 {[%emt 0:00:30]} 20. Qd8+ {[%emt 0:00:30]} Kg7 {[%emt 0:00:30]} 21. Qc7 {[%emt 0:00:30]} Ng3+ {[%emt 0:01:30]} 22. Kg1 {[%emt 0:00:30]} b5 {[%emt 0:00:00]} 23. Nxf7 {[%emt 0:00:30]} Na6 {[%emt 0:03:00]} 24. Qxg3+ {[%emt 0:00:00]} Kxf7 {[%emt 0:00:30]} 25. Bb3 {[%emt 0:00:00]} Nc5 {[%emt 0:00:30]} 26. Rae1 {[%emt 0:00:30]} Nxb3 {[%emt 0:00:30]} 27. axb3 {[%emt 0:00:30]} Rag8 {[%emt 0:00:30]} 28. Qf3 {[%emt 0:00:00]} b4 {[%emt 0:03:30]} 29. Ne4 {[%emt 0:00:00]} Rh6 {[%emt 0:00:30]} 30. Nxf6 {[%emt 0:00:30]} exf6 {[%emt 0:02:30]} 31. Qxc6 {[%emt 0:00:00]} Re8 {[%emt 0:02:30]} 32. Rd1 {[%emt 0:00:00]} Re7 {[%emt 0:02:30]} 33. Rd7 {[%emt 0:00:30]} e5 {[%emt 0:00:30]} 34. Rfd1 {[%emt 0:00:30]} Rxd7 {[%emt 0:00:30]} 35. Rxd7+ {[%emt 0:00:00]} Kg6 {[%emt 0:01:30]} 36. Qe4+ {[%emt 0:00:00]} f5 {[%emt 0:00:00]} 37. Qxe5 {[%emt 0:00:30]} 1-0